fUSD/lending_fUSD_20240129
["ID","MTS","AMOUNT","RATE_DAILY","PERIOD"]
[312970668,1706556646457,-2193.06,0.00035712,2]
[312970669,1706556646467,-180.0,0.00035886,2]
[312970670,1706556646478,-2000.0,0.00036,4]
[312970671,1706556646487,-44638.85965193,0.00036062,2]
[312970672,1706556646500,-13901.05655188,0.00036062,2]
[312970673,1706556646512,-2718.69916384,0.00036062,2]
[312970674,1706556646529,-277.00956143,0.00036062,2]
[312970677,1706556646549,-1256.88242162,0.00036062,2]
[312970680,1706556646561,-1147.88308011,0.00036062,2]
[312970685,1706556646591,-943.6300854,0.00036062,2]
[312970693,1706556646660,-1503.63458807,0.00036062,2]
[312970729,1706557832104,-547.9993307,0.00024999,2]
[312970730,1706557832169,-452.0006693,0.00024999,2]
[312970731,1706557832179,-550.0,0.00025,3]
[312970732,1706557832188,-600.0,0.00027,3]
[312970733,1706557832199,-2761.0,0.000287,2]
[312970734,1706557832210,-516.20206684,0.00029,3]
[312970735,1706557832225,-133.79793316,0.00029,3]
[312970736,1706557832235,-161.43258092,0.000299,2]
[312970737,1706557832245,-155.0,0.0003,2]
[312970738,1706557832257,-474.7803758,0.00030247,30]
[312970739,1706557832266,-700.0,0.00031,3]
[312970740,1706557832274,-448.74798946,0.00031,2]
[312970741,1706557832286,-467.8057218,0.00031,2]
[312970742,1706557832296,-578.8885869,0.00031,2]
[312970743,1706557832311,-415.03901403,0.00031,2]
[312970744,1706557832322,-308.01868781,0.00031,2]
[312970745,1706557832331,-1635.74,0.00031,2]
[312970746,1706557832340,-1486.19,0.00031,2]
[312970747,1706557832350,-326.52,0.00031136,2]
[312970748,1706557832359,-7340.01544938,0.00031841,7]
[312970750,1706557832367,-1944.38781531,0.00031841,6]
[312970752,1706557832377,-150.99,0.00031841,2]
[312970754,1706557832386,-25443.63,0.00032909,2]
[312970756,1706557832395,-250.0,0.00032922,2]
[312970757,1706557832404,-750.0,0.00033,3]
[312970759,1706557832414,-23890.0,0.00033004,2]
[312970761,1706557832423,-330.74,0.00033038,2]
[312970763,1706557832432,-1469.14,0.00033038,2]
[312970765,1706557832441,-275.86,0.00033078,2]
[312970767,1706557832450,-250.0,0.0003309,2]
[312970769,1706557832460,-200.0,0.00033097,2]
[312970771,1706557832469,-164.61,0.0003313,2]
[312970773,1706557832478,-150.0,0.00033144,2]
[312970775,1706557832487,-150.0,0.00033152,2]
[312970777,1706557832496,-2000.0,0.00033199,2]
[312970779,1706557832505,-187.33,0.00033264,2]
[312970781,1706557832514,-200.0,0.00033279,2]
[312970783,1706557832523,-326.52,0.000334,2]
[312970785,1706557832532,-1827.55,0.00033792,2]
[312970787,1706557832542,-161.43258092,0.00034398,2]
[312970789,1706557832550,-166.05,0.00034791,2]
[312970790,1706557832560,-6287.9343,0.000349,2]
[312970791,1706557832569,-378.758,0.00034943,2]
[312970792,1706557832578,-2654.84087218,0.00035,4]
[312970793,1706557832587,-800.0,0.00035,3]
[312970794,1706557832597,-5000.0,0.00035,7]
[312970795,1706557832607,-3000.0,0.00035,2]
[312970796,1706557832616,-517.58795719,0.00035043,4]
[312970797,1706557832625,-1356.72455971,0.00035448,2]
[312970798,1706557832635,-28486.36114629,0.00035495,4]
[312970799,1706557832644,-1771.4,0.000355,3]
[312970800,1706557832842,-1771.4,0.000355,3]
[312970801,1706557832853,-1771.4,0.000355,3]
[312970802,1706557832864,-1771.4,0.000355,3]
[312970803,1706557832873,-1771.4,0.000355,3]
[312970804,1706557832882,-1771.4,0.000355,3]
[312970805,1706557832891,-1771.4,0.000355,3]
[312970806,1706557832901,-1771.4,0.000355,3]
[312970807,1706557832911,-1771.4,0.000355,3]
[312970808,1706557832920,-1771.4,0.000355,3]
[312970809,1706557832929,-1771.4,0.000355,3]
[312970810,1706557832940,-1771.4,0.000355,3]
[312970811,1706557832951,-1771.4,0.000355,3]
[312970812,1706557832961,-1771.4,0.000355,3]
[312970813,1706557832972,-1771.4,0.000355,3]
[312970814,1706557832981,-1771.4,0.000355,3]
[312970815,1706557832991,-1771.4,0.000355,3]
[312970816,1706557833002,-1771.4,0.000355,3]
[312970817,1706557833011,-1771.4,0.000355,3]
[312970818,1706557833022,-1771.4,0.000355,3]
[312970819,1706557833031,-153.62,0.000355,3]
[312970820,1706557833040,-153.62,0.000355,3]
[312970821,1706557833049,-1250.0,0.000355,2]
[312970822,1706557833058,-326.52,0.00035664,2]
[312970823,1706557833067,-1000.0,0.00035762,2]
[312970824,1706557833079,-2500.0,0.00035762,2]
[312970825,1706557833090,-1000.0,0.00035831,2]
[312970826,1706557833100,-1356.72455971,0.00035859,2]
[312970827,1706557833110,-500.0,0.00035862,2]
[312970828,1706557833120,-3880.0947,0.00035862,2]
[312970829,1706557833130,-36370.2542,0.00035862,2]
[312970830,1706557833140,-71748.7232,0.00035962,2]
[312970831,1706557833150,-2000.0,0.00036,4]
[312970832,1706557833160,-1401.8049369,0.0003606,4]
[312970833,1706557833169,-155.0,0.0003606,4]
[312970834,1706557833178,-3493.07,0.00036062,4]
[312970835,1706557833188,-500.0,0.00036062,2]
[312970836,1706557833198,-200.0,0.00036062,2]
[312970837,1706557833207,-3338.44419604,0.00036062,2]
[312970838,1706557833217,-269.3456,0.00036062,2]
[312970839,1706557833228,-1172.95285553,0.00036254,2]
[312970840,1706557833237,-180.0,0.00036274,2]
[312970841,1706557833246,-1356.72455971,0.00036276,2]
[312970842,1706557833256,-1356.72455971,0.00036576,2]
[312970843,1706557833265,-539.62569247,0.00036994,2]
[312970844,1706557833275,-850.0,0.00037,3]
[312970845,1706557833285,-310.02128018,0.00037091,4]
[312970846,1706557833295,-979.77442295,0.00037092,4]
[312970847,1706557833305,-3836.23814025,0.00037093,2]
[312970848,1706557833318,-641.96773118,0.00037093,2]
[312970849,1706557833330,-583350.44317956,0.00037093,2]
[312970850,1706557833339,-193.12631424,0.00037094,4]
[312970851,1706557833349,-3619.12864015,0.00037094,4]
[312970852,1706557833359,-1256.24889353,0.00037094,4]
[312970853,1706557833367,-4885.29235048,0.00037094,4]
[312970854,1706557833377,-48378.2151674,0.00037094,4]
[312970855,1706557833386,-3445.88486767,0.00037094,4]
[312970856,1706557833396,-529.84927836,0.00037094,4]
[312970857,1706557833406,-269.20070026,0.00037094,4]
[312970858,1706557833415,-155.22013602,0.00037094,2]
[312970859,1706557833424,-155.51348707,0.00037094,4]
[312970860,1706557833434,-155.41027789,0.00037094,4]
[312970861,1706557833444,-385.5449845,0.00037094,4]
[312970862,1706557833453,-1485.51430148,0.00037094,4]
[312970863,1706557833462,-4276.78305022,0.00037095,4]
[312970864,1706557833475,-913.35829636,0.00037095,4]
[312970865,1706557833484,-155.0,0.00037095,4]
[312970866,1706557833494,-698.04764279,0.00037095,4]
[312970867,1706557833503,-16382.5094268,0.00037096,4]
[312970868,1706557833513,-200.0,0.00037232,5]
[312970869,1706557833523,-800.0,0.00037232,5]
[312970870,1706557833532,-164.61,0.00037239,2]
[312970871,1706557833542,-157.62403304,0.00037373,2]
[312970872,1706557833551,-330.0,0.00037472,4]
[312970873,1706557833560,-500.0,0.00037472,15]
[312970874,1706557833570,-500.0,0.00037472,15]
[312970875,1706557833579,-500.0,0.00037472,15]
[312970876,1706557833589,-500.0,0.00037472,15]
[312970877,1706557833598,-500.0,0.00037472,15]
[312970878,1706557833608,-500.0,0.00037472,15]
[312970879,1706557833617,-500.0,0.00037472,15]
[312970880,1706557833626,-500.0,0.00037472,15]
[312970881,1706557833636,-500.0,0.00037472,15]
[312970882,1706557833645,-236.17602013,0.00037472,15]
[312970883,1706557833654,-500.0,0.00037472,15]
[312970884,1706557833663,-500.0,0.00037472,15]
[312970885,1706557833673,-500.0,0.00037472,15]
[312970886,1706557833682,-500.0,0.00037472,15]
[312970887,1706557833691,-500.0,0.00037472,15]
[312970888,1706557833701,-500.0,0.00037472,15]
[312970889,1706557833710,-301.0,0.00037473,5]
[312970890,1706557833719,-32764.49498214,0.00037473,15]
[312970891,1706557833728,-1556.31351165,0.00037473,2]
[312970892,1706557833737,-12418.01229999,0.00037473,15]
[312970893,1706557833746,-52635.8176968,0.00037473,15]
[312970894,1706557833756,-2000.0,0.00037493,4]
[312970895,1706557833765,-4921.66884322,0.00037593,2]
[312970896,1706557833776,-165.03648676,0.00037701,5]
[312970897,1706557833786,-326.52,0.00037928,2]
[312970898,1706557833795,-1742.755314,0.00038,7]
[312970899,1706557833803,-150.0,0.00038,12]
[312970900,1706557833814,-500.0,0.000384,2]
[312970901,1706557833823,-4495.03986899,0.000385,7]
[312970902,1706557833833,-539.62569247,0.00038706,2]
[312970903,1706557833842,-313.25057214,0.00038799,4]
[312970904,1706557833851,-2018.33631066,0.0003888,2]
[312970905,1706557833860,-2018.33631065,0.0003888,2]
[312970906,1706557833869,-161.43258092,0.00038895,2]
[312970907,1706557833878,-282.60808243,0.0003898,2]
[312970908,1706557833887,-978.30213314,0.00039,4]
[312970909,1706557833897,-621.60218478,0.00039,4]
[312970910,1706557833906,-1431.73512433,0.00039,2]
[312970911,1706557833914,-197.53428177,0.00039,4]
[312970912,1706557833924,-900.0,0.00039,3]
[312970913,1706557833933,-448.07,0.0003926,2]
[312970914,1706557833942,-2018.33631065,0.00039356,2]
[312970915,1706557833950,-196.83604684,0.00039482,2]
[312970916,1706557833960,-500.0,0.00039659,4]
[312970917,1706557833969,-500.0,0.00039668,4]
[312970918,1706557833978,-500.0,0.00039676,4]
[312970919,1706557833987,-1089.38869641,0.00039682,13]
[312970920,1706557833997,-500.0,0.00039685,4]
[312970921,1706557834006,-500.0,0.00039694,4]
[312970922,1706557834015,-500.0,0.00039703,4]
[312970923,1706557834024,-500.0,0.00039712,4]
[312970924,1706557834033,-500.0,0.0003972,4]
[312970925,1706557834042,-500.0,0.00039729,4]
[312970926,1706557834052,-500.0,0.00039738,4]
[312970927,1706557834061,-1814.54,0.00039738,5]
[312970928,1706557834070,-500.0,0.00039747,4]
[312970929,1706557834082,-500.0,0.00039756,4]
[312970930,1706557834091,-500.0,0.00039764,4]
[312970931,1706557834101,-500.0,0.00039773,4]
[312970932,1706557834110,-500.0,0.00039782,4]
[312970933,1706557834119,-500.0,0.00039791,4]
[312970934,1706557834128,-500.0,0.000398,4]
[312970935,1706557834137,-5000.0,0.000399,3]
[312970936,1706557834147,-1804.85,0.00039925,5]
[312970937,1706557834156,-669.78979745,0.0004,20]
[312970938,1706557834165,-2274.86979912,0.0004,4]
[312970939,1706557834174,-3200.0,0.0004,4]
[312970940,1706557834183,-155.0,0.0004,4]
[312970941,1706557834193,-8715.04318702,0.0004,4]
[312970951,1706557839919,-4961.49630549,0.0003,4]
[312970952,1706557839929,-450.0,0.00035,3]
[312970953,1706557839938,-500.0,0.00039999,31]
[312970954,1706557839947,-359.57511335,0.00039999,31]
[312970955,1706557839956,-40447.42288713,0.0004,4]
[312970957,1706557839968,-5230.06151122,0.0004,4]
[312970958,1706557839977,-180.5079485,0.0004,2]
[312970960,1706557839987,-155.0,0.0004,2]
[312970962,1706557839996,-891.63417295,0.0004,30]
[312970963,1706557840005,-2684.57209746,0.0004,4]
[312970964,1706557840015,-22076.99674252,0.0004,4]
[312970965,1706557840024,-1086.74219428,0.0004,4]
[312970966,1706557840033,-255.0,0.0004,12]
[312970967,1706557840042,-1823.09,0.00040098,5]
[312970968,1706557840051,-326.52,0.00040192,2]
[312970969,1706557840060,-1771.4,0.000403,4]
[312970970,1706557840070,-1771.4,0.000403,4]
[312970971,1706557840082,-1771.4,0.000403,4]
[312970972,1706557840091,-1532.20579944,0.000403,4]
[312970976,1706557840312,-239.19420056,0.000403,4]
[312970977,1706557840322,-298.58658684,0.000403,4]
[312970978,1706557840334,-301.06218014,0.000403,4]
[312970981,1706557840390,-1171.75123302,0.000403,4]
[312970982,1706557840400,-1771.4,0.000403,4]
[312970983,1706557840410,-1771.4,0.000403,4]
[312970984,1706557840419,-1771.4,0.000403,4]
[312970985,1706557840429,-1771.4,0.000403,4]
[312970986,1706557840439,-1771.4,0.000403,4]
[312970987,1706557840448,-1771.4,0.000403,4]
[312970988,1706557840457,-1771.4,0.000403,4]
[312970989,1706557840467,-1771.4,0.000403,4]
[312970990,1706557840477,-328.13285361,0.000403,4]
[312970999,1706557840868,-1443.26714639,0.000403,4]
[312971001,1706557840877,-1771.4,0.000403,4]
[312971003,1706557840886,-1771.4,0.000403,4]
[312971004,1706557840896,-1771.4,0.000403,4]
[312971005,1706557840905,-1771.4,0.000403,4]
[312971006,1706557840915,-1771.4,0.000403,4]
[312971007,1706557840924,-1771.4,0.000403,4]
[312971008,1706557840934,-153.62,0.000403,4]
[312971009,1706557840943,-153.62,0.000403,4]
[312971010,1706557840952,-153.62,0.000403,4]
[312971011,1706557840961,-153.62,0.000403,4]
[312971012,1706557840971,-1838.33,0.0004035,5]
[312971013,1706557840980,-1000.0,0.00040395,30]
[312971014,1706557840988,-1250.0,0.000405,2]
[312971015,1706557840998,-1000.0,0.00040528,30]
[312971016,1706557841007,-1000.0,0.00040617,30]
[312971017,1706557841016,-157.62403301,0.00040728,9]
[312971018,1706557841025,-448.07,0.00040733,2]
[312971019,1706557841034,-904.36154998,0.00040776,13]
[312971020,1706557841044,-1490.0,0.000408,12]
[312971021,1706557841053,-1000.0,0.00040857,2]
[312971022,1706557841062,-1089.38869641,0.00040884,15]
[312971023,1706557841071,-1000.0,0.00040913,30]
[312971024,1706557841085,-3450.16710605,0.00041,4]
[312971025,1706557841094,-950.0,0.00041,3]
[312971026,1706557841103,-150.0,0.00041096,2]
[312971027,1706557841112,-178.86,0.00041096,2]
[312971028,1706557841122,-2018.33631065,0.00041333,3]
[312971029,1706557841131,-164.61,0.00041349,2]
[312971030,1706557841141,-1000.0,0.00041632,30]
[312971031,1706557841149,-1046.86,0.0004168,10]
[312971032,1706557841159,-887.36956361,0.0004168,11]
[312971033,1706557842330,-4644.18094857,0.0004168,11]
[312971034,1706557842342,-1043.09905149,0.0004168,8]
[312971035,1706557842354,-1022.29,0.0004168,8]
[312971036,1706557842366,-263.755,0.0004168,8]
[312971037,1706557842380,-1614.05244,0.0004168,8]
[312971038,1706557842393,-1581.68935672,0.0004168,8]
[312971045,1706557843170,-88940.76203859,0.0004168,8]
[312971046,1706557843182,-960.39447797,0.0004169,2]
[312971047,1706557843192,-1207.51589181,0.0004169,4]
[312971048,1706557843203,-155.14276424,0.0004169,4]
[312971049,1706557843213,-5000.0,0.0004169,35]
[312971050,1706557843222,-494.505917,0.0004169,4]
[312971051,1706557843234,-155.0,0.0004169,4]
[312971052,1706557843245,-751.53589364,0.0004169,4]
[312971053,1706557843254,-3917.12869059,0.0004169,7]
[312971054,1706557843263,-15000.0,0.0004171,58]
[312971055,1706557843272,-1741.40993,0.0004171,30]
[312971056,1706557843281,-306.682723,0.0004171,30]
[312971057,1706557843291,-800.0,0.00041999,2]
[312971058,1706557843300,-2228.29021066,0.00042,4]
[312971059,1706557843310,-150.0,0.00042,30]
[312971060,1706557843319,-1089.38869641,0.00042085,16]
[312971061,1706557843328,-666.0,0.000421,4]
[312971062,1706557843337,-2011.34,0.000421,2]
[312971063,1706557843347,-491.632993,0.000421,2]
[312971064,1706557843356,-150.0,0.00042177,2]
[312971065,1706557843365,-448.07,0.00042205,2]
[312971066,1706557843375,-5531.55051218,0.00042359,11]
[312971067,1706557843384,-1822.28,0.00042379,5]
[312971068,1706557843394,-326.52,0.00042456,2]
[312971069,1706557843403,-154.47780884,0.00042471,30]
[312971070,1706557843412,-1000.0,0.000425,2]
[312971071,1706557843422,-154.47780884,0.00042971,30]
[312971072,1706557843431,-150.0,0.00043014,30]
[312971073,1706557843441,-150.0,0.00043259,2]
[312971074,1706557843451,-5531.55051218,0.00043277,11]
[312971075,1706557843460,-1089.38869641,0.00043287,18]
[312971076,1706557843470,-2018.33631065,0.00043311,5]
[312971077,1706557843479,-161.43258092,0.00043393,2]
[312971078,1706557843488,-154.47780884,0.00043471,30]
[312971079,1706557843498,-448.07,0.00043677,2]
[312971080,1706557843507,-5531.55051218,0.0004381,11]
[312971081,1706557843517,-2011.34,0.0004382,2]
[312971082,1706557843528,-702.69,0.00043836,15]
[312971083,1706557843537,-150.0,0.00044028,30]
[312971085,1706557843546,-157.62403301,0.00044082,22]
[312971086,1706557843556,-1469.14,0.00044271,120]
[312971088,1706557843565,-150.0,0.0004434,2]
[312971090,1706557843575,-154.47780884,0.00044471,30]
[312971092,1706557843584,-1089.38869641,0.00044489,19]
[312971094,1706557843593,-210.712,0.00044547,4]
[312971096,1706557843602,-210.713,0.00044547,4]
[312971097,1706557843611,-600.0,0.0004467,3]
[312971099,1706557843621,-578.46918205,0.000447,30]
[312971101,1706557843630,-734.00154494,0.000447,30]
[312971103,1706557843640,-194.43878153,0.000447,30]
[312971105,1706557843657,-1241.80122999,0.000447,30]
[312971108,1706557843668,-433.85188654,0.000447,30]
[312971110,1706557843678,-5531.55051218,0.00044709,11]
[312971111,1706557843688,-326.52,0.0004472,2]
[312971113,1706557843697,-11063.1010244,0.0004498,12]
[312971115,1706557843707,-22126.2020487,0.0004499,12]
[312971117,1706557843717,-1023.0,0.0004499,2]
[312971119,1706557843726,-413.0,0.0004499,2]
[312971120,1706557843736,-367.59745435,0.00045,30]
[312971121,1706557843746,-168.39041318,0.00045,7]
[312971122,1706557843756,-316.31305984,0.00045,4]
[312971123,1706557843765,-7989.7744028,0.00045,30]
[312971124,1706557843774,-156.1948957,0.00045,4]
[312971125,1706557843784,-1771.4,0.00045,5]
[312971126,1706557843794,-1771.4,0.00045,5]
[312971127,1706557843804,-1771.4,0.00045,5]
[312971128,1706557843813,-1771.4,0.00045,5]
[312971129,1706557843823,-1771.4,0.00045,5]
[312971130,1706557843833,-1771.4,0.00045,5]
[312971131,1706557843842,-1771.4,0.00045,5]
[312971132,1706557843852,-1771.4,0.00045,5]
[312971133,1706557843862,-1771.4,0.00045,5]
[312971134,1706557843871,-1771.4,0.00045,5]
[312971135,1706557843881,-1771.4,0.00045,5]
[312971136,1706557843891,-1771.4,0.00045,5]
[312971137,1706557843901,-1771.4,0.00045,5]
[312971138,1706557843910,-1771.4,0.00045,5]
[312971139,1706557843920,-1771.4,0.00045,5]
[312971140,1706557843929,-1771.4,0.00045,5]
[312971141,1706557843939,-1771.4,0.00045,5]
[312971142,1706557843949,-1771.4,0.00045,5]
[312971143,1706557843958,-1771.4,0.00045,5]
[312971144,1706557843968,-1771.4,0.00045,5]
[312971145,1706557843978,-153.62,0.00045,5]
[312971146,1706557843987,-153.62,0.00045,5]
[312971147,1706557843997,-153.62,0.00045,5]
[312971148,1706557844006,-153.62,0.00045,5]
[312971149,1706557844015,-300.0,0.00045,2]
[312971150,1706557844025,-8209.0,0.00045,2]
[312971151,1706557844034,-1827.55,0.00045025,120]
[312971152,1706557844044,-598.94371851,0.00045061,2]
[312971153,1706557844053,-5531.55051218,0.0004508,12]
[312971154,1706557844063,-5531.55051218,0.0004509,12]
[312971155,1706557844072,-1106.0,0.0004509,2]
[312971156,1706557844086,-380.0,0.0004509,2]
[312971157,1706557844095,-10188.0,0.000451,2]
[312971158,1706557844105,-94465.6478868,0.0004514,10]
[312971159,1706557844114,-448.07,0.00045149,2]
[312971160,1706557844124,-13404.86124747,0.00045151,12]
[312971161,1706557844139,-30847.54284993,0.00045151,12]
[312971162,1706557844148,-14033.45715007,0.0004516,12]
[312971163,1706557844191,-410.000007,0.0004516,12]
[312971164,1706557844206,-400.93262288,0.0004516,12]
[312971165,1706557844226,-486.046,0.0004516,12]
[312971170,1706557846203,-540.916875,0.0004029,10]
[312971171,1706557846493,-331.463125,0.0004029,10]
[312971172,1706557846503,-699.63996508,0.0004516,12]
[312971197,1706558032829,6456.6535325,0.00023,2]
[312971198,1706558032854,120000.0,0.00023,2]
[312971202,1706558200542,77.70789678,0.00022078,2]
[312971203,1706558200566,1355.93455462,0.00022078,2]
[312971205,1706558338484,2473.25420639,0.00022308,2]
[312971212,1706558465663,8457.25633301,0.00020696,5]
[312971213,1706558657601,1636.68384112,0.00021846,2]
[312971214,1706558685725,421.11065095,0.00022076,2]
[312971215,1706558687291,1099.06361557,0.00020696,2]
[312971216,1706558706360,418.22582824,0.00020466,2]
[312971217,1706558803161,290.15303484,0.00022,4]
[312971218,1706558922614,2387.52098125,0.00022072,2]
[312971226,1706558937666,420.3224339,0.00022072,2]
[312971227,1706558938537,1846.50901311,0.00022302,2]
[312971244,1706559032328,-177.02222375,0.0002286,2]
[312971245,1706559032338,-201.23386849,0.0002286,2]
[312971246,1706559032358,-406.45312757,0.0002286,2]
[312971247,1706559032370,-404.60980498,0.0002286,2]
[312971248,1706559032403,-50.95765877,0.0002286,2]
[312971249,1706559032414,-228.83425128,0.00022861,2]
[312971250,1706559032424,-556.83336961,0.00022861,2]
[312971258,1706559032693,-890.33172124,0.00022861,2]
[312971260,1706559032705,-570.09,0.00022861,2]
[312971262,1706559032717,-769.61929948,0.00022861,2]
[312971264,1706559032726,-844.15422968,0.00022861,2]
[312971266,1706559032738,-419.14886282,0.00022861,2]
[312971268,1706559032748,-1717.62742877,0.00022861,2]
[312971271,1706559032759,-433.05317139,0.00022861,2]
[312971272,1706559032768,-1043.67199829,0.00022862,2]
[312971274,1706559032778,-289.62150855,0.00022862,2]
[312971277,1706559032788,-387.88213891,0.00022862,2]
[312971279,1706559032797,-155.0,0.00022863,2]
[312971281,1706559032807,-1206.38010345,0.00022863,2]
[312971283,1706559032817,-4359.42927597,0.00022863,2]
[312971285,1706559032825,-2495.60370826,0.00022863,2]
[312971287,1706559032835,-155.0,0.00022864,2]
[312971289,1706559032844,-1258.46384015,0.00022864,2]
[312971290,1706559032854,-178.15674416,0.00022864,2]
[312971292,1706559032863,-37.73751137,0.00022864,2]
[312971295,1706559032875,-159.57473166,0.00022864,2]
[312971297,1706559032885,-155.10976385,0.00022864,2]
[312971299,1706559032894,-247.24143396,0.00022865,2]
[312971301,1706559032904,-59.81797829,0.00022865,2]
[312971336,1706559038343,-344.00913488,0.00022859,2]
[312971337,1706559038352,-464.74117289,0.00022859,2]
[312971338,1706559038364,-741.27723955,0.00022859,2]
[312971339,1706559038375,-420.8888349,0.00022859,2]
[312971340,1706559038398,-424.099996,0.00022859,2]
[312971341,1706559038411,-553.99364224,0.00022859,2]
[312971342,1706559038421,-502.52175265,0.0002286,2]
[312971343,1706559038430,-2608.00460511,0.0002286,2]
[312971344,1706559038454,-7941.81331071,0.0002286,2]
[312971345,1706559038463,-372.03797211,0.0002286,2]
[312971346,1706559038475,-341.65113321,0.00022865,2]
[312971347,1706559038484,-16737.4802229,0.00022865,2]
[312971348,1706559038512,-12520.9012805,0.00022865,2]
[312971349,1706559038526,-4575.42597657,0.00022865,2]
[312971350,1706559038535,-3036.63469718,0.00022866,2]
[312971351,1706559038544,-155.0,0.00022866,2]
[312971352,1706559038553,-13546.7024021,0.00022866,2]
[312971353,1706559038564,-5495.37942455,0.00022866,2]
[312971354,1706559038574,-243.02633212,0.00022866,2]
[312971355,1706559038583,-150.0,0.0002287,2]
[312971356,1706559038592,-158.44919549,0.00022897,2]
[312971357,1706559038604,-2907.00228459,0.00022898,2]
[312971358,1706559038614,-566.68010223,0.00022899,2]
[312971359,1706559038624,-1419.65879106,0.00022899,2]
[312971360,1706559038636,-1000.0,0.000229,2]
[312971361,1706559038645,-2193.0039,0.000229,2]
[312971362,1706559038656,-155.0,0.00022991,2]
[312971363,1706559038666,-364.75082717,0.00022991,2]
[312971364,1706559038675,-699.19928448,0.00022991,2]
[312971366,1706559038684,-204.7712179,0.00022991,2]
[312971367,1706559038695,-362.37352791,0.00022991,2]
[312971369,1706559038704,-155.0,0.00022992,2]
[312971370,1706559038714,-155.0,0.00022992,2]
[312971371,1706559038723,-155.0,0.00022992,2]
[312971372,1706559038732,-155.0,0.00022992,2]
[312971373,1706559038743,-5224.49310087,0.00022992,2]
[312971374,1706559038753,-1083.09219996,0.00022993,2]
[312971375,1706559038763,-22798.85206081,0.00022993,2]
[312971376,1706559038772,-5453.28620354,0.00022994,2]
[312971377,1706559038782,-524.98204654,0.00022994,2]
[312971378,1706559038791,-15244.96035743,0.00022995,2]
[312971379,1706559038801,-155.0,0.00022996,2]
[312971380,1706559038810,-285.91347788,0.00022996,2]
[312971381,1706559038819,-155.0,0.00022996,2]
[312971382,1706559038828,-1712.39042015,0.00022996,2]
[312971383,1706559038838,-7797.6592019,0.00022996,2]
[312971384,1706559038847,-191.24014811,0.00022996,2]
[312971385,1706559038856,-1177.38177053,0.00022996,2]
[312971386,1706559038866,-630.041593,0.00022996,2]
[312971387,1706559038875,-4033.34357982,0.00022997,2]
[312971388,1706559038884,-1047.30860009,0.00022997,2]
[312971389,1706559038894,-250.76825842,0.00022997,2]
[312971390,1706559038904,-671.94530451,0.00022998,2]
[312971391,1706559038914,-314.59008109,0.00022998,2]
[312971392,1706559038922,-917.90116639,0.00022998,2]
[312971393,1706559038931,-2079.5244274,0.00022998,2]
[312971394,1706559038942,-218.18270859,0.00022998,2]
[312971395,1706559038951,-161.81736275,0.00022998,2]
[312971396,1706559038960,-1051.37036506,0.00022998,2]
[312971397,1706559038969,-155.0,0.00022998,2]
[312971398,1706559038979,-197.11131551,0.00022998,2]
[312971399,1706559038988,-203.40048379,0.00022998,2]
[312971400,1706559038997,-1970.91638222,0.00022998,2]
[312971401,1706559039006,-4939.07457513,0.00022999,2]
[312971402,1706559039015,-650.18975055,0.00022999,2]
[312971403,1706559039024,-7427.71687634,0.00023,2]
[312971409,1706559040915,-7892.10578127,0.00023,2]
[312971410,1706559040933,-2163.86672022,0.00023,2]
[312971415,1706559043444,-3036.63469718,0.00022859,2]
[312971416,1706559043455,-1113.36530282,0.00023,2]
[312971417,1706559043554,-6588.17016598,0.00023,2]
[312971419,1706559046435,-527.72907186,0.00022999,2]
[312971420,1706559046445,-46.17092814,0.00022999,2]
[312971421,1706559046547,-341.71121077,0.00022999,2]
[312971422,1706559046556,-1062.58453614,0.00022999,2]
[312971423,1706559046565,-748.90425309,0.00023,2]